bitfinex/quotes_ETHUSD_20240902
["timestamp","ask_amount","ask_price","bid_price","bid_amount"]
[1725301466939,4.52441171,2529.8,2529.2,6.2045]
[1725301467346,4.52441171,2529.8,2529.3,0.09588615]
[1725301467572,0.62867488,2529.7,2529.2,6.2045]
[1725301467774,0.62867488,2529.7,2529.3,0.09588615]
[1725301467931,0.62867488,2529.7,2529.2,6.2045]
[1725301468331,0.62867488,2529.7,2529.3,0.09588615]
[1725301468678,0.62867488,2529.7,2529.2,6.2045]
[1725301468887,7.90588,2529.8,2529.4,0.09582305]
[1725301469087,3.95342,2529.5,2529.3,0.09588615]
[1725301469247,3.95342,2529.5,2529.0,2.2507]
[1725301469430,4.92030871,2529.5,2529.0,2.2507]
[1725301471834,3.95373,2529.3,2529.0,2.2507]
[1725301475532,7.90747,2529.3,2529.0,2.2507]
[1725301475947,3.95373,2529.3,2529.0,2.2507]
[1725301476375,3.95373,2529.3,2529.1,0.0954209]
[1725301476755,3.95373,2529.3,2529.2,0.09535778]
[1725301476952,3.95373,2529.3,2528.8,6.21921]
[1725301476953,3.95383,2529.2,2528.8,2.2648]
[1725301477284,3.95356,2529.4,2528.9,0.09554714]
[1725301478156,3.95366,2529.3,2528.9,0.09554714]
[1725301478876,3.95382,2529.2,2528.9,0.09554714]
[1725301479107,3.95397,2529.1,2528.9,0.09554714]
[1725301479294,8.303657,2529.0,2528.9,0.09554714]
[1725301479586,8.303657,2529.0,2528.6,2.3939]
[1725301479587,3.95431,2528.9,2528.6,2.3939]
[1725301480234,3.95448,2528.8,2528.6,2.3939]
[1725301480530,3.95448,2528.8,2528.4,2.3939]
[1725301481456,3.95467,2528.7,2528.4,2.3939]
[1725301481652,3.95467,2528.7,2528.2,2.3939]
[1725301481852,3.95467,2528.7,2528.2,9.3492]
[1725301482749,3.95448,2528.8,2528.2,9.3492]
[1725301482957,3.95448,2528.8,2528.3,3.95521]
[1725301483888,7.90902,2528.8,2528.3,3.95521]
[1725301484207,9.14541541,2528.8,2528.3,3.95521]
[1725301484497,5.19087541,2528.8,2528.3,3.95521]
[1725301484804,3.95448,2528.8,2528.3,3.95521]
[1725301486961,7.909,2528.8,2528.3,3.95521]
[1725301487195,3.95448,2528.8,2528.3,3.95521]
[1725301488595,3.95448,2528.8,2528.4,2.3349]
[1725301489711,7.90901,2528.8,2528.4,2.3349]
[1725301489866,3.95448,2528.8,2528.4,2.3349]
[1725301491314,3.95448,2528.8,2528.5,0.09213441]
[1725301494821,3.95397,2529.1,2528.6,2.2698]
[1725301494972,3.95393,2529.2,2528.7,3.95459]
[1725301495167,3.95393,2529.2,2528.7,4.04659812]
[1725301495918,3.95391,2529.2,2528.7,5.07372293]
[1725301496067,3.95363,2529.4,2528.9,3.95421]
[1725301496273,7.90725,2529.4,2528.9,3.95421]
[1725301496473,3.95362,2529.4,2529.0,0.09181873]
[1725301496873,7.90724,2529.4,2529.0,0.09181873]
[1725301497569,3.95362,2529.4,2529.0,0.09181873]
[1725301497769,3.95335,2529.5,2529.1,2.2698]
[1725301498174,3.95335,2529.5,2529.2,0.09169249]
[1725301498376,4.92024971,2529.5,2529.2,0.09169249]
[1725301499304,3.95335,2529.5,2529.2,0.09169249]
[1725301500128,5.71564705,2529.6,2529.2,0.09169249]
[1725301500129,3.95331,2529.6,2529.2,0.09169249]
[1725301500475,5.71562705,2529.6,2529.2,0.09169249]
[1725301500981,9.66891705,2529.6,2529.2,0.09169249]
[1725301501323,10.63580875,2529.6,2529.2,0.09169249]
[1725301501523,5.71531705,2529.8,2529.2,0.09169249]
[1725301501675,5.71531705,2529.8,2529.3,3.95358]
[1725301502090,5.71531705,2529.8,2529.4,2.44864542]
[1725301503584,9.66831705,2529.8,2529.4,2.44864542]
[1725301503785,6.68214876,2529.8,2529.4,2.44864542]
[1725301503996,10.63511876,2529.8,2529.4,2.44864542]
[1725301504176,10.63510876,2529.8,2529.4,2.44864542]
[1725301504374,6.68213876,2529.8,2529.4,2.44864542]
[1725301504597,6.68212876,2529.8,2529.4,2.44864542]
[1725301505200,10.63509876,2529.8,2529.4,2.44864542]
[1725301506235,6.68212876,2529.8,2529.4,2.44864542]
[1725301506737,4.91979171,2529.8,2529.4,2.44864542]
[1725301506960,3.95296,2529.8,2529.4,2.44864542]
[1725301508197,3.95296,2529.8,2529.5,2.376]
[1725301508406,3.95242,2530.1,2529.6,3.95318]
[1725301508615,3.95242,2530.1,2529.6,4.04419922]
[1725301508932,3.95242,2530.1,2529.6,0.09101922]
[1725301508933,1.76233705,2529.8,2529.6,0.09101922]
[1725301509143,3.95303,2529.7,2529.6,0.09101922]
[1725301509519,3.95303,2529.7,2529.3,5.376]
[1725301509722,3.95303,2529.7,2529.6,0.09101922]
[1725301509959,3.95303,2529.7,2529.3,5.376]
[1725301510127,3.95303,2529.7,2529.6,0.09101922]
[1725301510306,3.95303,2529.7,2529.3,5.376]
[1725301510510,3.95303,2529.7,2529.6,0.09101922]
[1725301510724,3.95303,2529.7,2529.3,5.376]
[1725301510927,3.95303,2529.7,2529.6,0.09101922]
[1725301511155,3.95303,2529.7,2529.3,5.376]
[1725301511361,3.95303,2529.7,2529.6,0.09101922]
[1725301511513,3.95319,2529.6,2529.3,5.376]
[1725301512150,3.95319,2529.6,2529.3,2.376]
[1725301512327,3.95303,2529.7,2529.3,2.376]
[1725301515567,3.95303,2529.7,2529.3,6.32965]
[1725301521462,3.95303,2529.7,2529.4,0.09074508]
[1725301522766,5.71523705,2529.8,2529.4,4.04423508]
[1725301523314,3.9529,2529.8,2529.4,4.04423508]
[1725301524463,3.9529,2529.8,2529.4,0.09074508]
[1725301526962,3.95319,2529.6,2529.4,0.09074508]
[1725301527127,3.95305,2529.7,2529.4,0.09074508]
[1725301532486,10.3707,2529.5,2529.4,0.09074508]
[1725301532784,18.2774,2529.5,2529.4,0.09074508]
[1725301533077,3.95417,2529.0,2528.6,2.3238]
[1725301533251,3.95437,2528.9,2528.6,2.3238]
[1725301533452,5.71650705,2529.0,2528.6,2.3238]
[1725301535438,3.9543,2528.9,2528.6,2.3238]
[1725301536166,3.95406,2529.1,2528.7,2.2832]
[1725301536369,3.95406,2529.1,2528.7,2.36576285]
[1725301536571,7.90815,2529.1,2528.7,2.36576285]
[1725301536769,3.95406,2529.1,2528.7,2.36576285]
[1725301536973,3.95417,2529.0,2528.7,2.36576285]
[1725301540999,3.95436,2528.9,2528.7,2.36576285]
[1725301541155,7.90872,2528.9,2528.7,2.36576285]
[1725301541349,7.90874,2528.9,2528.7,2.36576285]
[1725301541555,7.90876,2528.9,2528.7,2.36576285]
[1725301541755,7.90876,2528.9,2528.7,0.08256285]
[1725301541959,3.95462,2528.7,2528.4,2.2827]
[1725301543110,3.95462,2528.7,2528.2,11.23526]
[1725301543111,1.76233705,2528.5,2528.2,2.2827]
[1725301543401,3.95538,2528.2,2528.0,2.2827]
[1725301543697,7.91029,2528.4,2528.0,2.2827]
[1725301543897,3.95507,2528.4,2528.0,2.2827]
[1725301544418,3.95527,2528.3,2528.0,2.2827]
[1725301547111,3.95527,2528.3,2527.7,9.6341102]
[1725301547112,3.95553,2528.1,2527.7,9.6341102]
[1725301547818,3.95553,2528.1,2527.7,2.3541102]
[1725301547980,3.95553,2528.1,2527.7,6.10714173]
[1725301549465,3.95538,2528.2,2527.7,6.10714173]
[1725301549893,7.91084,2528.2,2527.7,6.10714173]
[1725301550596,7.91085,2528.2,2527.7,6.10714173]
[1725301551172,3.95557,2528.1,2527.7,6.10714173]
[1725301551373,3.95557,2528.1,2527.8,0.08400685]
[1725301552175,3.95569,2528.0,2527.8,0.08400685]
[1725301552708,7.91149,2528.0,2527.8,0.08400685]
[1725301552914,3.95585,2527.9,2527.8,0.08400685]
[1725301553286,7.9117,2527.9,2527.8,0.08400685]
[1725301555185,3.95585,2527.9,2527.8,0.08400685]
[1725301555386,3.95566,2528.1,2527.8,2.52560685]
[1725301555690,3.95569,2528.0,2527.8,0.08400685]
[1725301556991,3.95585,2527.9,2527.8,0.08400685]
[1725301557190,7.9117,2527.9,2527.8,0.08400685]
[1725301557515,10.69860473,2527.9,2527.8,0.08400685]
[1725301561306,7.912,2527.8,2527.7,0.0794102]
[1725301561684,7.912,2527.8,2527.7,0.16484533]
[1725301562805,3.956,2527.8,2527.7,0.16484533]
[1725301564386,3.9557,2528.0,2527.7,2.62744533]
[1725301564584,3.95585,2527.9,2527.7,2.62744533]
[1725301565401,7.91117,2528.1,2527.7,2.62744533]
[1725301565887,3.9557,2528.0,2527.7,2.62744533]
[1725301566287,7.91119,2528.1,2527.7,2.62744533]
[1725301566514,3.95572,2528.0,2527.7,2.62744533]
[1725301569040,3.95554,2528.1,2527.7,6.58359533]
[1725301569240,3.95531,2528.3,2527.8,2.4601]
[1725301569421,3.95531,2528.3,2527.8,6.41602]
[1725301569422,3.9554,2528.2,2527.8,6.41602]
[1725301569623,3.9554,2528.2,2527.9,0.08466873]
[1725301572539,5.71764705,2528.3,2527.9,0.08466873]
[1725301572845,3.95531,2528.3,2528.0,2.4842]
[1725301573001,3.95531,2528.3,2528.0,3.60383354]
[1725301573340,3.95531,2528.3,2528.1,0.08454238]
[1725301573845,7.91062,2528.3,2528.1,0.08454238]
[1725301574907,3.95531,2528.3,2528.1,0.08454238]
[1725301575306,7.91062,2528.3,2528.1,0.08454238]
[1725301576550,3.95531,2528.3,2528.1,0.08454238]
[1725301577071,7.91061,2528.3,2528.1,0.08454238]
[1725301577205,3.9553,2528.3,2528.1,0.08454238]
[1725301577619,7.91064,2528.3,2528.1,0.08454238]
[1725301578359,3.9553,2528.3,2528.1,0.08454238]
[1725301578709,7.91064,2528.3,2528.1,0.08454238]
[1725301578909,7.91065,2528.3,2528.1,0.08454238]
[1725301579454,3.9553,2528.3,2528.1,0.08454238]
[1725301581854,3.95507,2528.4,2528.1,0.08454238]
[1725301582461,3.95489,2528.6,2528.1,4.04001238]
[1725301582770,3.95446,2528.8,2528.3,2.4842]
[1725301582931,3.95446,2528.8,2528.4,3.95506]
[1725301583133,5.71679705,2528.8,2528.3,2.4842]
[1725301583449,3.95484,2528.6,2528.4,0.08368711]
[1725301583816,7.90968,2528.6,2528.4,0.08368711]
[1725301584254,3.95484,2528.6,2528.4,0.08368711]
[1725301584433,7.90973,2528.6,2528.4,0.08368711]
[1725301584633,3.95484,2528.6,2528.4,0.08368711]
[1725301585268,7.90982,2528.5,2528.4,0.08368711]
[1725301585452,11.86473,2528.5,2528.4,0.08368711]
[1725301585772,3.95557,2528.1,2527.8,7.28]
[1725301585922,3.95557,2528.1,2527.7,2.5267102]
[1725301586118,7.91123,2528.1,2527.7,2.5267102]
[1725301586317,3.95557,2528.1,2527.7,2.5267102]
[1725301588939,3.956,2527.8,2527.7,0.0794102]
[1725301589138,3.95572,2528.0,2527.7,0.0794102]
[1725301589139,3.95586,2527.9,2527.7,0.0794102]
[1725301590167,7.91099,2528.2,2527.7,0.0794102]
[1725301590365,7.91099,2528.2,2527.8,2.2847]
[1725301590366,3.95546,2528.2,2527.8,2.2847]
[1725301590574,3.95583,2528.0,2527.8,2.2847]
[1725301590729,3.95579,2528.0,2527.8,2.2847]
[1725301592466,3.95563,2528.1,2527.8,2.2847]
[1725301592786,3.95535,2528.3,2527.8,2.91673302]
[1725301593087,3.95535,2528.3,2527.8,6.24069]
[1725301593438,7.91068,2528.3,2527.8,6.24069]
[1725301593643,3.95533,2528.3,2527.8,7.0749431]
[1725301595746,7.91064,2528.3,2527.8,7.0749431]
[1725301596077,3.95573,2528.0,2527.7,0.0794102]
[1725301596591,3.95573,2528.0,2527.8,0.08421558]
[1725301597687,3.95555,2528.1,2527.8,0.08421558]
[1725301598748,3.95531,2528.3,2527.9,2.3999]
[1725301599054,3.95531,2528.3,2527.9,2.48406599]
[1725301601873,3.95539,2528.2,2527.9,2.48406599]
[1725301603186,7.91085,2528.2,2527.9,2.48406599]
[1725301603596,7.91086,2528.2,2527.9,2.48406599]
[1725301604168,3.95539,2528.2,2527.9,2.48406599]
[1725301604499,7.91088,2528.2,2527.9,2.48406599]
[1725301604851,3.95539,2528.2,2527.9,2.48406599]
[1725301605593,7.91088,2528.2,2527.9,2.48406599]
[1725301605801,3.95539,2528.2,2527.9,2.48406599]
[1725301610397,3.95567,2528.1,2527.9,2.48406599]
[1725301613987,7.9113,2528.1,2527.9,2.48406599]
[1725301614174,3.95563,2528.1,2527.9,2.48406599]
[1725301614636,3.95563,2528.1,2527.9,0.08416599]
[1725301614798,3.95569,2528.0,2527.9,0.08416599]
[1725301614996,4.990362,2528.0,2527.7,0.0794102]
[1725301615204,3.95594,2527.9,2527.7,0.0794102]
[1725301615497,3.95585,2527.9,2527.7,0.0794102]
[1725301615691,7.91181,2527.9,2527.7,0.0794102]
[1725301616808,3.95585,2527.9,2527.7,0.0794102]
[1725301617310,7.91182,2527.9,2527.7,0.0794102]
[1725301617521,3.95585,2527.9,2527.7,0.0794102]
[1725301618341,7.91182,2527.9,2527.7,0.0794102]
[1725301618843,3.956,2527.8,2527.7,0.0794102]
[1725301619344,7.912,2527.8,2527.7,0.0794102]
[1725301620396,3.956,2527.8,2527.7,0.0794102]
[1725301622649,3.95581,2528.0,2527.7,2.3806102]
[1725301624444,3.95577,2528.0,2527.7,2.3806102]
[1725301626142,3.95585,2527.9,2527.7,2.3806102]
[1725301626447,3.95585,2527.9,2527.8,0.08152372]
[1725301627301,3.95577,2528.0,2527.8,0.08152372]
[1725301632762,7.91102,2528.2,2527.8,0.08152372]
[1725301632943,3.95556,2528.1,2527.8,0.08152372]
[1725301635927,3.95585,2527.9,2527.8,0.08152372]
[1725301636171,11.97543705,2527.9,2527.8,0.08152372]
[1725301647437,11.97543705,2527.9,2527.8,0.08152372]
[1725301648040,4.92301871,2528.1,2527.8,2.33802372]
[1725301648223,5.71799705,2528.1,2527.8,2.33802372]
[1725301648392,3.95569,2528.0,2527.8,2.33802372]
[1725301648747,6.28852676,2528.8,2528.1,3.95549]
[1725301649038,3.95472,2528.7,2528.3,2.2565]
[1725301649341,3.95472,2528.7,2528.4,0.08153814]
[1725301649541,5.71679705,2528.8,2528.4,0.08153814]
[1725301649833,3.9546,2528.7,2528.4,0.08153814]
[1725301651493,7.9093,2528.7,2528.4,0.08153814]
[1725301652547,3.9546,2528.7,2528.4,0.08153814]
[1725301654542,3.9546,2528.7,2528.4,1.10639195]
[1725301654712,3.95445,2528.8,2528.5,2.2916]
[1725301655141,3.95445,2528.8,2528.6,0.08089644]
[1725301655507,3.9546,2528.7,2528.6,0.08089644]
[1725301656019,8.87633871,2528.7,2528.6,0.08089644]
[1725301656375,7.91004,2528.5,2528.0,6.22688]
[1725301656564,3.95501,2528.5,2528.0,10.1825]
[1725301657269,3.95501,2528.5,2528.0,10.18249]
[1725301657455,3.95501,2528.5,2528.0,6.22688]
[1725301657665,3.95501,2528.5,2528.1,1.350688]
[1725301661962,3.95501,2528.5,2528.1,5.306198]
[1725301662475,5.71710705,2528.6,2528.1,5.306198]
[1725301663107,3.95472,2528.7,2528.2,3.95535]
[1725301663262,3.95472,2528.7,2528.3,2.2662]
[1725301663672,5.71680705,2528.8,2528.4,3.95505]
[1725301663871,1.76233705,2528.8,2528.4,3.95505]
[1725301664805,5.71679705,2528.8,2528.4,3.95505]
[1725301664974,5.71662705,2528.9,2528.4,3.95498]
[1725301665300,5.71662705,2528.9,2528.4,9.04289948]
[1725301665600,5.71662705,2528.9,2528.4,5.08790948]
[1725301665776,5.71662705,2528.9,2528.4,9.04288948]
[1725301666169,5.71662705,2528.9,2528.5,3.95489]
[1725301666516,1.76233705,2529.1,2528.7,3.95459]
[1725301667330,5.71633705,2529.1,2528.7,3.95459]
[1725301667997,1.76233705,2529.1,2528.7,3.95451]
[1725301668401,1.76233705,2529.1,2528.8,3.95443]
[1725301668605,5.71602705,2529.3,2528.9,2.3677]
[1725301668980,6.91172275,2529.3,2528.9,2.3677]
[1725301669377,3.95383,2529.2,2528.9,2.3677]
[1725301671189,7.90773,2529.2,2529.0,0.07967196]
[1725301671398,3.95383,2529.2,2529.0,0.07967196]
[1725301674300,1.76233705,2529.3,2529.0,0.07967196]
[1725301675289,5.71605705,2529.3,2529.0,0.07967196]
[1725301679389,3.95384,2529.2,2529.0,0.07967196]
[1725301681421,5.71605705,2529.3,2529.0,0.07967196]
[1725301684496,9.66980705,2529.3,2529.0,0.07967196]
[1725301685356,5.71605705,2529.3,2529.0,0.07967196]
[1725301685652,9.66982705,2529.3,2529.0,0.07967196]
[1725301686193,3.95383,2529.2,2529.0,0.07967196]
[1725301686443,12.15847705,2529.1,2529.0,0.07967196]
[1725301686794,3.95469,2528.7,2528.2,6.32886]
[1725301686994,6.50794405,2528.7,2528.3,0.07932101]
[1725301687299,5.71702705,2528.7,2528.2,6.32886]
[1725301687531,5.71702705,2528.7,2528.4,0.07937305]
[1725301687793,5.71702705,2528.7,2528.2,6.32886]
[1725301687794,5.71702705,2528.7,2528.5,0.0793099]
[1725301688037,3.95475,2528.6,2528.2,2.3736]
[1725301691090,3.95491,2528.5,2528.2,2.3736]
[1725301696379,3.95475,2528.6,2528.2,2.3736]
[1725301698164,5.71663705,2528.9,2528.3,2.3453]
[1725301698477,5.71663705,2528.9,2528.4,3.95499]
[1725301699580,3.95445,2528.8,2528.4,3.95499]
[1725301701229,3.95445,2528.8,2528.5,0.07984217]
[1725301702005,3.95445,2528.8,2528.3,6.3005]
[1725301702405,3.95445,2528.8,2528.4,0.07990532]
[1725301702663,3.95466,2528.7,2528.4,0.07990532]
[1725301704544,3.95491,2528.5,2528.4,0.07990532]
[1725301706866,3.95476,2528.6,2528.4,0.07990532]
[1725301707218,3.95456,2528.8,2528.4,4.03496532]
[1725301707423,3.95421,2529.0,2528.6,2.3995]
[1725301707659,3.95431,2528.9,2528.6,2.3995]
[1725301708125,3.95431,2528.9,2528.7,0.07964811]
[1725301709835,7.90842,2529.0,2528.7,0.07964811]
[1725301710866,3.95439,2528.9,2528.7,0.07964811]
[1725301716695,3.95414,2529.0,2528.7,0.07964811]
[1725301716843,3.95386,2529.2,2528.8,2.3024]
[1725301717046,3.95386,2529.2,2528.8,6.33626684]
[1725301717551,3.95359,2529.4,2529.0,2.3024]
[1725301717865,3.9533,2529.6,2529.0,2.3024]
[1725301717866,3.95337,2529.5,2529.1,0.70497446]
[1725301718066,3.95352,2529.4,2529.1,0.70497446]
[1725301718265,3.95352,2529.4,2529.1,0.07930746]
[1725301718505,3.95336,2529.5,2529.1,0.07930746]
[1725301718799,7.90684,2529.5,2529.1,0.07930746]
[1725301719150,3.95336,2529.5,2529.1,0.07930746]
[1725301724894,3.95336,2529.5,2529.1,4.03327746]
[1725301726212,3.95381,2529.2,2529.1,0.07930746]
[1725301726358,7.90762,2529.2,2529.1,0.07930746]
[1725301726682,7.90762,2529.2,2528.6,6.24198]
[1725301726683,3.95397,2529.1,2528.6,6.24198]
[1725301729483,5.71686705,2528.8,2528.3,2.2873]
[1725301729685,9.67142705,2528.8,2528.3,6.24241]
[1725301729894,5.71686705,2528.8,2528.3,6.24241]
[1725301730094,3.95453,2528.8,2528.3,6.24241]
[1725301730807,3.95424,2529.0,2528.4,3.95502]
[1725301730949,3.95428,2528.9,2528.5,2.3508]
[1725301731357,3.95428,2528.9,2528.6,0.07884386]
[1725301732382,3.95424,2529.0,2528.6,4.03358386]
[1725301732589,3.95424,2529.0,2528.6,5.06752425]
[1725301733301,3.95397,2529.1,2528.8,2.3508]
[1725301733816,3.95397,2529.1,2528.9,0.07865445]
[1725301735543,7.90806,2529.1,2528.9,0.07865445]
[1725301735837,3.95413,2529.0,2528.9,0.07865445]
[1725301736146,6.68351076,2529.0,2528.5,3.9549]
[1725301736327,5.71646705,2529.0,2528.9,0.07865445]
[1725301736526,5.71646705,2529.0,2528.5,3.9549]
[1725301736844,5.71646705,2529.0,2528.9,0.07865445]
[1725301737001,3.95413,2529.0,2528.5,7.90972]
[1725301737199,3.95413,2529.0,2528.9,0.07865445]
[1725301737398,3.95413,2529.0,2528.5,7.90972]
[1725301737717,3.95413,2529.0,2528.5,3.95482]
[1725301737912,3.95413,2529.0,2528.6,0.07884386]
[1725301738312,3.95452,2528.8,2528.6,0.07884386]
[1725301738547,3.95452,2528.8,2528.4,9.6308]
[1725301738848,3.95452,2528.8,2528.7,0.07878072]
[1725301739012,3.95452,2528.8,2528.4,9.6308]
[1725301739216,3.95452,2528.8,2528.7,0.07878072]
[1725301739419,3.95452,2528.8,2528.4,9.6308]
[1725301739613,3.9544,2528.9,2528.7,0.07878072]
[1725301739614,3.95437,2528.9,2528.7,0.07878072]
[1725301739822,3.95437,2528.9,2528.8,2.3508]
[1725301740125,3.95437,2528.9,2528.8,2.42986311]
[1725301740311,3.95421,2529.0,2528.8,0.07906311]
[1725301740514,3.95421,2529.0,2528.5,7.664223]
[1725301740714,3.95421,2529.0,2528.6,1.8899253]
[1725301741048,3.95407,2529.1,2528.7,3.95458]
[1725301741340,3.95407,2529.1,2528.8,2.37336311]
[1725301741712,3.95407,2529.1,2528.8,3.19514995]
[1725301742533,3.95376,2529.3,2528.8,7.14948995]
[1725301742717,5.3708,2529.6,2529.1,3.95397]
[1725301742718,3.95321,2529.6,2529.1,3.95397]
[1725301742919,1.76233705,2529.9,2529.2,2.76850762]
[1725301743141,1.76233705,2529.9,2529.2,6.8013161]
[1725301743142,3.95315,2529.7,2529.2,6.8013161]
[1725301743307,3.9532,2529.6,2529.2,2.8475761]
[1725301744209,3.9532,2529.6,2529.3,0.68014561]
[1725301744415,5.71533705,2529.8,2529.3,0.68014561]
[1725301744630,3.95312,2529.7,2529.4,0.07878604]
[1725301744955,3.95323,2529.6,2529.4,0.07878604]
[1725301745114,3.95323,2529.6,2529.2,2.2943]
[1725301745299,3.95323,2529.6,2529.3,0.07884914]
[1725301745504,3.95323,2529.6,2529.2,3.647118]
[1725301745703,3.95323,2529.6,2529.3,0.07884914]
[1725301745944,3.95323,2529.6,2529.2,3.647118]
[1725301746105,3.95323,2529.6,2529.3,0.07884914]
[1725301746314,3.95323,2529.6,2529.2,3.647118]
[1725301746807,3.95323,2529.6,2529.3,0.07884914]
[1725301747222,3.95323,2529.6,2529.2,3.647118]
[1725301747445,3.95323,2529.6,2529.4,0.07878604]
[1725301747630,3.95338,2529.5,2529.3,0.07884914]
[1725301747846,3.95338,2529.5,2529.2,2.2943]
[1725301748032,7.90654,2529.6,2529.2,2.2943]
[1725301750539,9.66833705,2529.8,2529.3,3.95364]
[1725301750752,3.95307,2529.7,2529.3,3.95364]
[1725301750939,3.95307,2529.7,2529.3,4.03270584]
[1725301751136,3.95288,2529.8,2529.4,2.3937]
[1725301751472,5.71500705,2530.0,2529.4,6.9647765]
[1725301751638,5.71499705,2530.0,2529.5,3.95331]
[1725301751839,5.71499705,2530.0,2529.6,1.09180865]
[1725301752163,9.66767705,2530.0,2529.6,1.09180865]
[1725301752469,3.95272,2529.9,2529.5,3.95331]
[1725301752624,3.95272,2529.9,2529.4,6.96480231]
[1725301752831,3.95272,2529.9,2529.5,0.69648023]
[1725301753437,3.95272,2529.9,2529.5,4.64982023]
[1725301754274,3.95272,2529.9,2529.5,0.69648023]
[1725301755553,3.95291,2529.8,2529.5,0.69648023]
[1725301755869,3.95328,2529.6,2529.2,3.746525]
[1725301756166,3.95328,2529.6,2529.3,3.0]
[1725301759486,3.95304,2529.7,2529.3,3.0]
[1725301759691,3.95304,2529.7,2529.3,4.0700245]
[1725301761158,3.95304,2529.7,2529.4,0.07816277]
[1725301761659,7.90594,2529.8,2529.4,0.07816277]
[1725301761856,7.90592,2529.8,2529.4,0.07816277]
[1725301762065,3.95273,2529.9,2529.5,3.95333]
[1725301762462,3.95273,2529.9,2529.6,0.07803657]
[1725301763282,7.90606,2529.7,2529.6,0.07803657]
[1725301763491,3.95319,2529.6,2529.0,11.23411]
[1725301763695,3.95352,2529.4,2529.0,7.28]
[1725301764292,3.95375,2529.3,2529.0,7.28]
[1725301764447,3.95375,2529.3,2528.9,2.3937]
[1725301764646,3.95375,2529.3,2528.9,6.15051251]
[1725301764891,3.95375,2529.3,2528.9,10.10477251]
[1725301767083,3.95405,2529.1,2528.9,2.3937]
[1725301768109,3.95384,2529.2,2528.9,2.3937]
[1725301768257,3.95384,2529.2,2528.9,4.056522]
[1725301769755,2.3982,2529.4,2528.9,4.056522]
[1725301769756,3.95364,2529.4,2528.9,8.010712]
[1725301770098,3.95347,2529.5,2529.0,3.95411]
[1725301770298,3.95315,2529.7,2529.2,2.4686]
[1725301770508,3.95315,2529.7,2529.2,6.42228]
[1725301770796,3.95312,2529.7,2529.2,6.42228]
[1725301772371,7.90624,2529.7,2529.2,6.42228]
[1725301772612,3.95312,2529.7,2529.2,6.42228]
[1725301772807,3.95312,2529.7,2529.3,0.65013542]
[1725301773094,7.90627,2529.7,2529.3,0.65013542]
[1725301773522,3.9532,2529.6,2529.3,0.65013542]
[1725301773705,3.9532,2529.6,2529.2,6.42228]
[1725301776307,3.9532,2529.6,2529.3,0.07780097]
[1725301776543,3.9532,2529.6,2529.2,6.42228]
[1725301776741,3.9532,2529.6,2529.3,0.07780097]
[1725301776902,3.9532,2529.6,2529.2,6.42228]
[1725301777103,3.9532,2529.6,2529.2,8.187909]
[1725301777304,3.9532,2529.6,2529.3,0.07780097]
[1725301777538,3.9532,2529.6,2529.2,8.187909]
[1725301777707,3.9532,2529.6,2529.3,0.07788901]
[1725301777911,3.9532,2529.6,2529.2,8.187909]
[1725301778115,3.9532,2529.6,2529.3,0.07788901]
[1725301778510,3.9532,2529.6,2529.4,0.0778259]
[1725301778867,3.9532,2529.6,2529.2,8.187909]
[1725301779035,3.9532,2529.6,2529.5,0.0777628]
[1725301779214,3.9532,2529.6,2529.2,8.187909]
[1725301779421,3.9532,2529.6,2529.5,0.0777628]
[1725301779643,3.9532,2529.6,2529.2,8.187909]
[1725301779822,3.9532,2529.6,2529.5,0.0777628]
[1725301780005,3.95312,2529.7,2529.2,12.141639]
[1725301780345,3.95288,2529.8,2529.4,6.44353]
[1725301780547,3.95288,2529.8,2529.5,0.7299047]
[1725301781511,3.95258,2530.0,2529.6,2.4901]
[1725301781853,3.95258,2530.0,2529.7,0.07754856]
[1725301783822,3.95274,2529.9,2529.7,0.07754856]
[1725301784042,3.95258,2530.0,2529.7,0.07754856]
[1725301785376,3.95249,2530.1,2529.7,0.07754856]
[1725301785848,3.95268,2530.0,2529.7,0.07754856]
[1725301790168,1.76233705,2530.2,2529.7,0.33431342]
[1725301790350,1.76233705,2530.2,2529.8,2.2628]
[1725301790351,3.95241,2530.2,2529.8,2.2628]
[1725301790549,3.95241,2530.2,2529.9,0.07724632]
[1725301791821,3.95236,2530.2,2529.9,0.07724632]
[1725301792127,3.95256,2530.0,2529.9,0.07724632]
[1725301792309,7.90512,2530.0,2529.9,0.07724632]
[1725301792515,3.95273,2529.9,2529.6,7.28]
[1725301797741,3.95201,2530.4,2529.8,6.31049]
[1725301797941,3.95201,2530.4,2529.8,6.38953589]
[1725301798250,3.95201,2530.4,2529.8,7.51921148]
[1725301799427,7.90406,2530.4,2529.8,7.51921148]
[1725301799841,3.95213,2530.3,2529.8,3.48737559]
[1725301800045,3.95251,2530.1,2529.8,2.3577]
[1725301800228,3.95257,2530.0,2529.6,2.3577]
[1725301800528,3.95257,2530.0,2529.4,5.4676]
[1725301800728,3.95289,2529.8,2529.4,6.3721629]
[1725301800942,3.9527,2530.0,2529.4,6.3721629]
[1725301801158,3.95285,2529.9,2529.5,1.36521629]
[1725301801626,3.95297,2529.8,2529.5,1.36521629]
[1725301802773,3.95319,2529.6,2529.4,2.4676]
[1725301802972,3.95319,2529.6,2529.3,7.28]
[1725301804071,3.95305,2529.7,2529.3,7.28]
[1725301804239,3.95305,2529.7,2529.3,10.63210241]
[1725301805778,3.95266,2530.0,2529.4,6.42863]
[1725301805933,3.95266,2530.0,2529.5,2.10142924]
[1725301806687,3.95203,2530.4,2529.6,2.4752]
[1725301806888,3.95226,2530.2,2529.7,3.95296]
[1725301807186,3.95211,2530.3,2529.8,0.642816]
[1725301808370,3.95211,2530.3,2529.8,4.595676]
[1725301808680,3.95211,2530.3,2529.9,0.4595676]
[1725301809788,3.95211,2530.3,2529.8,0.642816]
[1725301810165,5.71444705,2530.3,2529.8,0.642816]
[1725301811513,3.95203,2530.4,2529.9,2.316]
[1725301811712,1.76233705,2530.5,2529.9,2.39504634]
[1725301811883,3.9521,2530.3,2530.0,0.6911686]
[1725301813415,5.71413705,2530.5,2530.0,0.6911686]
[1725301813604,3.95196,2530.4,2530.0,0.6911686]